[Event "*** Titled Tuesday Blitz"]
[Site "Chess.com"]
[Date "2021.03.02"]
[Round "4"]
[White "anon481216"]
[Black "mbojan"]
[Result "0-1"]
[WhiteElo "2474"]
[BlackElo "2631"]
[TimeControl "180+1"]
[EndTime "10:40:16 PST"]
[Termination "mbojan won by resignation"]

1. d4 {[%clk 0:03:00.9]} 1... g6 {[%clk 0:03:00.2]} 2. c4 {[%clk 0:03:01]} 2...
Bg7 {[%clk 0:03:00.7]} 3. e4 {[%clk 0:03:01.2]} 3... d6 {[%clk 0:03:01]} 4. Nc3
{[%clk 0:03:00.6]} 4... e5 {[%clk 0:03:01.3]} 5. Nf3 {[%clk 0:03:00.5]} 5... Nc6
{[%clk 0:03:00.2]} 6. Bg5 {[%clk 0:02:58.1]} 6... f6 {[%clk 0:03:00]} 7. Be3
{[%clk 0:02:58.1]} 7... Nh6 {[%clk 0:03:00.6]} 8. dxe5 {[%clk 0:02:58.3]} 8...
dxe5 {[%clk 0:03:00.3]} 9. Qxd8+ {[%clk 0:02:58.3]} 9... Kxd8 {[%clk 0:02:54.3]}
10. O-O-O+ {[%clk 0:02:54.8]} 10... Bd7 {[%clk 0:02:54.1]} 11. h3 {[%clk
0:02:54.9]} 11... Nf7 {[%clk 0:02:47.3]} 12. c5 {[%clk 0:02:54.5]} 12... Kc8
{[%clk 0:02:44.9]} 13. Bc4 {[%clk 0:02:51.1]} 13... Ncd8 {[%clk 0:02:35.2]} 14.
Rd2 {[%clk 0:02:40]} 14... Be6 {[%clk 0:02:24]} 15. Be2 {[%clk 0:02:30.8]} 15...
Bh6 {[%clk 0:02:09.1]} 16. Bxh6 {[%clk 0:02:24.9]} 16... Nxh6 {[%clk 0:02:09.3]}
17. Rhd1 {[%clk 0:02:24.8]} 17... c6 {[%clk 0:02:01.9]} 18. Nh2 {[%clk
0:02:16.4]} 18... f5 {[%clk 0:01:56.4]} 19. b4 {[%clk 0:01:41]} 19... Nhf7
{[%clk 0:01:43.5]} 20. Kb2 {[%clk 0:01:35.9]} 20... b6 {[%clk 0:01:30]} 21. Na4
{[%clk 0:01:30.4]} 21... Kc7 {[%clk 0:01:16]} 22. Kc3 {[%clk 0:01:21.9]} 22...
b5 {[%clk 0:01:11.2]} 23. Nb2 {[%clk 0:01:21.2]} 23... a5 {[%clk 0:01:11.3]} 24.
a3 {[%clk 0:01:13.5]} 24... axb4+ {[%clk 0:01:09.9]} 25. Kxb4 {[%clk 0:01:11.1]}
25... Nb7 {[%clk 0:00:37.7]} 26. a4 {[%clk 0:01:08.3]} 26... bxa4 {[%clk
0:00:35.7]} 27. Nxa4 {[%clk 0:01:08.2]} 27... Rxa4+ {[%clk 0:00:25.2]} 28. Kxa4
{[%clk 0:01:07.6]} 28... Nxc5+ {[%clk 0:00:25.9]} 29. Ka5 {[%clk 0:00:53.3]}
29... Ra8+ {[%clk 0:00:10.7]} 30. Kb4 {[%clk 0:00:53.2]} 30... Nxe4 {[%clk
0:00:11.4]} 31. Rb2 {[%clk 0:00:43.1]} 31... c5+ {[%clk 0:00:08.8]} 32. Kb5
{[%clk 0:00:38.8]} 32... Nfd6+ {[%clk 0:00:08.8]} 33. Rxd6 {[%clk 0:00:36.9]}
33... Nxd6+ {[%clk 0:00:04.7]} 34. Kxc5 {[%clk 0:00:36.8]} 34... Ne4+ {[%clk
0:00:05.2]} 35. Kb4 {[%clk 0:00:36.3]} 35... Rb8+ {[%clk 0:00:04.9]} 36. Ka3
{[%clk 0:00:36.6]} 36... Ra8+ {[%clk 0:00:05.1]} 37. Kb4 {[%clk 0:00:36.7]}
37... Rb8+ {[%clk 0:00:05.8]} 38. Ka3 {[%clk 0:00:37]} 38... Rxb2 {[%clk
0:00:06.4]} 39. Kxb2 {[%clk 0:00:37.4]} 39... Nxf2 {[%clk 0:00:07.1]} 40. Nf3
{[%clk 0:00:37.3]} 40... Kd6 {[%clk 0:00:07.2]} 41. Kc3 {[%clk 0:00:35]} 41...
e4 {[%clk 0:00:06.3]} 42. Ng5 {[%clk 0:00:34.6]} 42... h6 {[%clk 0:00:05.7]} 43.
Nh7 {[%clk 0:00:30]} 43... Ke5 {[%clk 0:00:04.8]} 44. Nf8 {[%clk 0:00:28.9]}
44... Bf7 {[%clk 0:00:03.6]} 45. Nd7+ {[%clk 0:00:28.3]} 45... Kf4 {[%clk
0:00:04.2]} 46. Kd2 {[%clk 0:00:28.2]} 46... Kg3 {[%clk 0:00:04.3]} 47. Bf1
{[%clk 0:00:28.4]} 47... f4 {[%clk 0:00:03.6]} 48. Ne5 {[%clk 0:00:27.6]} 48...
e3+ {[%clk 0:00:04.1]} 49. Ke1 {[%clk 0:00:25.7]} 49... Bd5 {[%clk 0:00:04.7]}
50. Nxg6 {[%clk 0:00:24.6]} 50... Bxg2 {[%clk 0:00:04.2]} 51. Bxg2 {[%clk
0:00:23.9]} 51... Kxg2 {[%clk 0:00:04.7]} 52. Nxf4+ {[%clk 0:00:24.6]} 52... Kf3
{[%clk 0:00:05.3]} 53. Nd5 {[%clk 0:00:20.6]} 53... Nd3+ {[%clk 0:00:05.1]} 54.
Kd1 {[%clk 0:00:19]} 54... e2+ {[%clk 0:00:06]} 55. Kc2 {[%clk 0:00:19.3]} 55...
e1=Q {[%clk 0:00:06.7]} 56. Kxd3 {[%clk 0:00:19.3]} 56... Qe4+ {[%clk
0:00:06.2]} 57. Kc3 {[%clk 0:00:19.6]} 57... Qxd5 {[%clk 0:00:07.1]} 0-1

[Event "*** Titled Tuesday Blitz"]
[Site "Chess.com"]
[Date "2021.03.02"]
[Round "4"]
[White "Skat2704"]
[Black "yuki_chess123"]
[Result "1-0"]
[WhiteElo "2561"]
[BlackElo "2233"]
[TimeControl "180+1"]
[EndTime "10:40:17 PST"]
[Termination "Skat2704 won on time"]

1. d4 {[%clk 0:03:00.9]} 1... g6 {[%clk 0:02:58.7]} 2. c4 {[%clk 0:02:59.8]}
2... Bg7 {[%clk 0:02:59.3]} 3. Nc3 {[%clk 0:02:58.5]} 3... d6 {[%clk 0:02:59.9]}
4. e4 {[%clk 0:02:56.3]} 4... Nf6 {[%clk 0:03:00.4]} 5. Nf3 {[%clk 0:02:53.5]}
5... O-O {[%clk 0:03:01]} 6. Be2 {[%clk 0:02:52.8]} 6... e5 {[%clk 0:03:01.6]}
7. dxe5 {[%clk 0:02:51]} 7... dxe5 {[%clk 0:03:01]} 8. Qxd8 {[%clk 0:02:50.1]}
8... Rxd8 {[%clk 0:03:01.7]} 9. Bg5 {[%clk 0:02:50.7]} 9... Re8 {[%clk
0:03:01.7]} 10. O-O {[%clk 0:02:48.2]} 10... c6 {[%clk 0:02:51.1]} 11. Nd2
{[%clk 0:02:44.4]} 11... Na6 {[%clk 0:02:44.3]} 12. f3 {[%clk 0:02:43.2]} 12...
Nc7 {[%clk 0:02:40.7]} 13. Nb3 {[%clk 0:02:39.5]} 13... Ne6 {[%clk 0:02:40.4]}
14. Be3 {[%clk 0:02:38.8]} 14... Nd7 {[%clk 0:02:40.8]} 15. Na4 {[%clk
0:02:36.9]} 15... Bf8 {[%clk 0:02:37.5]} 16. Rfd1 {[%clk 0:02:31.1]} 16... b6
{[%clk 0:02:23.3]} 17. Rd2 {[%clk 0:02:25.6]} 17... Ndc5 {[%clk 0:02:07.7]} 18.
Nbxc5 {[%clk 0:02:20.8]} 18... bxc5 {[%clk 0:02:04.3]} 19. Rad1 {[%clk
0:02:14.3]} 19... Nd4 {[%clk 0:02:04]} 20. g3 {[%clk 0:02:04.3]} 20... f6 {[%clk
0:02:01.7]} 21. Kf2 {[%clk 0:01:56.1]} 21... Be6 {[%clk 0:02:01]} 22. b3 {[%clk
0:01:54.3]} 22... Rab8 {[%clk 0:01:57.9]} 23. h4 {[%clk 0:01:49.9]} 23... Rb4
{[%clk 0:01:56.5]} 24. h5 {[%clk 0:01:46.2]} 24... Nxe2 {[%clk 0:01:47.5]} 25.
Rxe2 {[%clk 0:01:41]} 25... Bxc4 {[%clk 0:01:45.8]} 26. Rc2 {[%clk 0:01:36]}
26... Bf7 {[%clk 0:01:31.8]} 27. Bxc5 {[%clk 0:01:31.1]} 27... Bxc5+ {[%clk
0:01:17.5]} 28. Rxc5 {[%clk 0:01:28.6]} 28... Rf8 {[%clk 0:00:50]} 29. hxg6
{[%clk 0:01:24.6]} 29... Bxg6 {[%clk 0:00:41]} 30. Rxc6 {[%clk 0:01:19.9]} 30...
Be8 {[%clk 0:00:34.7]} 31. Ra6 {[%clk 0:01:18.3]} 31... Bxa4 {[%clk 0:00:30.7]}
32. Rxa4 {[%clk 0:01:18.1]} 32... Rxa4 {[%clk 0:00:30.7]} 33. bxa4 {[%clk
0:01:16.1]} 33... Rf7 {[%clk 0:00:31.2]} 34. Rd8+ {[%clk 0:01:09.5]} 34... Kg7
{[%clk 0:00:30.7]} 35. a5 {[%clk 0:01:06.5]} 35... Rc7 {[%clk 0:00:23.6]} 36. a6
{[%clk 0:01:04.2]} 36... Kg6 {[%clk 0:00:22.4]} 37. Rg8+ {[%clk 0:00:58.9]}
37... Kf7 {[%clk 0:00:20.6]} 38. Rb8 {[%clk 0:00:56.7]} 38... Ke6 {[%clk
0:00:20.7]} 39. Rb7 {[%clk 0:00:53.9]} 39... Kd6 {[%clk 0:00:20.6]} 40. Kg2
{[%clk 0:00:45.8]} 40... h5 {[%clk 0:00:10.2]} 41. Kh3 {[%clk 0:00:45]} 41...
Rc3 {[%clk 0:00:07.7]} 42. Rxa7 {[%clk 0:00:34.6]} 42... Rxf3 {[%clk 0:00:07.6]}
43. Rh7 {[%clk 0:00:34.4]} 43... Ra3 {[%clk 0:00:06.5]} 44. a7 {[%clk
0:00:34.5]} 44... Rxa2 {[%clk 0:00:06.3]} 45. Rf7 {[%clk 0:00:30.6]} 45... Ke6
{[%clk 0:00:06.1]} 46. Rb7 {[%clk 0:00:30.7]} 46... Kd6 {[%clk 0:00:04.1]} 47.
g4 {[%clk 0:00:28.6]} 47... hxg4+ {[%clk 0:00:02.2]} 48. Kxg4 {[%clk 0:00:28.9]}
48... Kc6 {[%clk 0:00:02.7]} 49. Rf7 {[%clk 0:00:28.2]} 49... Rg2+ {[%clk
0:00:02.4]} 50. Kf5 {[%clk 0:00:26.9]} 50... Ra2 {[%clk 0:00:02]} 51. Kxf6
{[%clk 0:00:26.2]} 51... Kd6 {[%clk 0:00:01.9]} 52. Rh7 {[%clk 0:00:21.8]} 52...
Ra6 {[%clk 0:00:01.7]} 53. Kf5 {[%clk 0:00:20.5]} 1-0

[Event "*** Titled Tuesday Blitz"]
[Site "Chess.com"]
[Date "2021.03.02"]
[Round "4"]
[White "Rud_Makarian"]
[Black "Konavets"]
[Result "1-0"]
[WhiteElo "2794"]
[BlackElo "2932"]
[TimeControl "180+1"]
[EndTime "10:40:18 PST"]
[Termination "Rud_Makarian won by resignation"]

1. d3 {[%clk 0:03:00.9]} 1... e5 {[%clk 0:02:59.5]} 2. e4 {[%clk 0:03:00.6]}
2... Nc6 {[%clk 0:02:58.9]} 3. Nf3 {[%clk 0:03:01.3]} 3... f5 {[%clk 0:02:55.5]}
4. Nc3 {[%clk 0:02:55.7]} 4... Nf6 {[%clk 0:02:54.6]} 5. Bg5 {[%clk 0:02:30.2]}
5... Bb4 {[%clk 0:02:45.5]} 6. Qd2 {[%clk 0:01:50.7]} 6... fxe4 {[%clk
0:02:33.3]} 7. Bxf6 {[%clk 0:01:38.8]} 7... Qxf6 {[%clk 0:02:28.4]} 8. dxe4
{[%clk 0:01:39.7]} 8... O-O {[%clk 0:02:16.2]} 9. Bc4+ {[%clk 0:01:39.3]} 9...
Kh8 {[%clk 0:02:14.1]} 10. a3 {[%clk 0:01:38.7]} 10... Bxc3 {[%clk 0:02:12.3]}
11. Qxc3 {[%clk 0:01:39.6]} 11... Nd4 {[%clk 0:02:12.8]} 12. Be2 {[%clk
0:01:35.1]} 12... Nxe2 {[%clk 0:02:11.1]} 13. Kxe2 {[%clk 0:01:35.9]} 13... d6
{[%clk 0:02:08.7]} 14. h3 {[%clk 0:01:29.5]} 14... Qg6 {[%clk 0:02:06.7]} 15.
Qe3 {[%clk 0:01:29.5]} 15... b6 {[%clk 0:02:04.4]} 16. Kf1 {[%clk 0:01:16.9]}
16... Ba6+ {[%clk 0:01:39.5]} 17. Kg1 {[%clk 0:01:16.5]} 17... Rf4 {[%clk
0:01:39.4]} 18. Nd2 {[%clk 0:01:16.9]} 18... Raf8 {[%clk 0:01:39.1]} 19. f3
{[%clk 0:01:17.4]} 19... h5 {[%clk 0:01:21.2]} 20. h4 {[%clk 0:00:55.3]} 20...
Bc8 {[%clk 0:01:19.3]} 21. a4 {[%clk 0:00:53.8]} 21... a5 {[%clk 0:01:13.4]} 22.
c3 {[%clk 0:00:50]} 22... Be6 {[%clk 0:01:12.8]} 23. b4 {[%clk 0:00:49.7]} 23...
Kg8 {[%clk 0:01:11.3]} 24. Kf2 {[%clk 0:00:43]} 24... Qe8 {[%clk 0:00:40]} 25.
Qd3 {[%clk 0:00:18.4]} 25... Qd8 {[%clk 0:00:33.6]} 26. g3 {[%clk 0:00:15.4]}
26... R4f6 {[%clk 0:00:33.9]} 27. Kg2 {[%clk 0:00:15.7]} 27... Rg6 {[%clk
0:00:34.2]} 28. Kh2 {[%clk 0:00:14.1]} 28... Rf4 {[%clk 0:00:31.7]} 29. Kg2
{[%clk 0:00:06.5]} 29... Rxh4 {[%clk 0:00:31.4]} 30. Rxh4 {[%clk 0:00:03.4]}
30... Qxh4 {[%clk 0:00:30.2]} 31. Nf1 {[%clk 0:00:04.1]} 31... Bh3+ {[%clk
0:00:29.4]} 32. Kf2 {[%clk 0:00:04.3]} 32... Bxf1 {[%clk 0:00:29.8]} 33. Qd5+
{[%clk 0:00:03.1]} 33... Kf8 {[%clk 0:00:22.7]} 34. gxh4 {[%clk 0:00:04]} 34...
Bh3 {[%clk 0:00:21.8]} 35. Qa8+ {[%clk 0:00:04.2]} 35... Ke7 {[%clk 0:00:21.7]}
36. Qb8 {[%clk 0:00:04.3]} 36... Kd7 {[%clk 0:00:21.4]} 37. Qf8 {[%clk
0:00:04.2]} 37... Rg2+ {[%clk 0:00:20.7]} 38. Ke3 {[%clk 0:00:04.4]} 38... Be6
{[%clk 0:00:21.4]} 39. Qh8 {[%clk 0:00:04.2]} 39... Bc4 {[%clk 0:00:20.3]} 40.
f4 {[%clk 0:00:03.9]} 40... exf4+ {[%clk 0:00:11.3]} 41. Kxf4 {[%clk 0:00:03.2]}
41... Rg4+ {[%clk 0:00:11.9]} 42. Ke3 {[%clk 0:00:03.8]} 42... Rxh4 {[%clk
0:00:12.2]} 43. Qxg7+ {[%clk 0:00:04.1]} 43... Kc6 {[%clk 0:00:12.5]} 44. Rg1
{[%clk 0:00:04.3]} 44... Rh3+ {[%clk 0:00:12.1]} 45. Rg3 {[%clk 0:00:04.8]}
45... Rh1 {[%clk 0:00:11]} 46. Qe7 {[%clk 0:00:05.2]} 46... Re1+ {[%clk
0:00:05.4]} 47. Kd2 {[%clk 0:00:05.3]} 47... Re2+ {[%clk 0:00:05.6]} 48. Kd1
{[%clk 0:00:05.4]} 48... Rf2 {[%clk 0:00:02.7]} 49. b5+ {[%clk 0:00:05]} 49...
Kb7 {[%clk 0:00:02.6]} 50. Rg7 {[%clk 0:00:05.4]} 1-0

[Event "*** Titled Tuesday Blitz"]
[Site "Chess.com"]
[Date "2021.03.02"]
[Round "4"]
[White "Homyakova_Elena"]
[Black "InitiatingASC"]
[Result "0-1"]
[WhiteElo "2278"]
[BlackElo "2443"]
[TimeControl "180+1"]
[EndTime "10:40:19 PST"]
[Termination "InitiatingASC won on time"]

1. e4 {[%clk 0:03:00.9]} 1... c5 {[%clk 0:02:59.7]} 2. Nf3 {[%clk 0:02:59.9]}
2... Nc6 {[%clk 0:03:00]} 3. d4 {[%clk 0:02:59.5]} 3... cxd4 {[%clk 0:03:00.9]}
4. Nxd4 {[%clk 0:03:00.2]} 4... Nf6 {[%clk 0:03:01.6]} 5. Nc3 {[%clk 0:02:58.4]}
5... e5 {[%clk 0:03:01.9]} 6. Ndb5 {[%clk 0:02:57.8]} 6... h6 {[%clk 0:03:02.5]}
7. Nd5 {[%clk 0:02:50.7]} 7... Nxd5 {[%clk 0:03:01.4]} 8. exd5 {[%clk
0:02:51.6]} 8... a6 {[%clk 0:03:02]} 9. dxc6 {[%clk 0:02:41]} 9... axb5 {[%clk
0:03:02.9]} 10. cxd7+ {[%clk 0:02:38.4]} 10... Bxd7 {[%clk 0:03:02.7]} 11. Be2
{[%clk 0:02:35.7]} 11... Qc7 {[%clk 0:02:59.3]} 12. O-O {[%clk 0:02:34.7]} 12...
Bd6 {[%clk 0:02:55.9]} 13. c3 {[%clk 0:02:28.5]} 13... O-O {[%clk 0:02:53.2]}
14. Qb3 {[%clk 0:02:24.6]} 14... Be6 {[%clk 0:02:45.2]} 15. Qxb5 {[%clk
0:02:20]} 15... Rxa2 {[%clk 0:02:36.7]} 16. Rxa2 {[%clk 0:02:11.9]} 16... Bxa2
{[%clk 0:02:37.6]} 17. c4 {[%clk 0:01:48]} 17... Ra8 {[%clk 0:02:19.4]} 18. Be3
{[%clk 0:01:41.3]} 18... e4 {[%clk 0:01:54.2]} 19. h3 {[%clk 0:01:15.4]} 19...
Qc6 {[%clk 0:01:30.5]} 20. Qxc6 {[%clk 0:01:11.7]} 20... bxc6 {[%clk 0:01:30.2]}
21. Ra1 {[%clk 0:00:53.3]} 21... Be5 {[%clk 0:01:24.8]} 22. Bc1 {[%clk
0:00:51.4]} 22... Ra4 {[%clk 0:01:21.5]} 23. Kf1 {[%clk 0:00:29]} 23... f5
{[%clk 0:01:04.5]} 24. Ke1 {[%clk 0:00:24.4]} 24... g5 {[%clk 0:00:52.3]} 25. c5
{[%clk 0:00:18.1]} 25... Bb3 {[%clk 0:00:42.5]} 26. Rxa4 {[%clk 0:00:15.4]}
26... Bxa4 {[%clk 0:00:43.4]} 27. b4 {[%clk 0:00:11.7]} 27... Bd4 {[%clk
0:00:38.4]} 28. Bc4+ {[%clk 0:00:10.5]} 28... Kg7 {[%clk 0:00:38.4]} 29. Be3
{[%clk 0:00:09.4]} 29... Bc3+ {[%clk 0:00:30.8]} 30. Bd2 {[%clk 0:00:09.3]}
30... Be5 {[%clk 0:00:31.3]} 31. Ke2 {[%clk 0:00:08]} 31... Kf6 {[%clk
0:00:31.7]} 32. f3 {[%clk 0:00:07.3]} 32... exf3+ {[%clk 0:00:26]} 33. Kxf3
{[%clk 0:00:07.9]} 33... h5 {[%clk 0:00:24.6]} 34. h4 {[%clk 0:00:06.6]} 34...
gxh4 {[%clk 0:00:20.1]} 35. Be1 {[%clk 0:00:05.8]} 35... Bd1+ {[%clk 0:00:18.3]}
36. Ke3 {[%clk 0:00:04.5]} 36... Bg3 {[%clk 0:00:15.7]} 37. Bc3+ {[%clk
0:00:03.8]} 37... Ke7 {[%clk 0:00:14.6]} 38. b5 {[%clk 0:00:03.7]} 38... Kd7
{[%clk 0:00:12.1]} 39. b6 {[%clk 0:00:03.6]} 39... Bg4 {[%clk 0:00:09.7]} 40.
Bf6 {[%clk 0:00:03.4]} 40... h3 {[%clk 0:00:09.9]} 41. gxh3 {[%clk 0:00:03.1]}
41... Bxh3 {[%clk 0:00:10.3]} 42. Kf3 {[%clk 0:00:03.1]} 42... Bb8 {[%clk
0:00:08.8]} 43. Ba6 {[%clk 0:00:02.6]} 43... Bg4+ {[%clk 0:00:08.9]} 44. Kg2
{[%clk 0:00:02]} 44... f4 {[%clk 0:00:09.3]} 45. Bd4 {[%clk 0:00:01.6]} 45...
f3+ {[%clk 0:00:09.2]} 46. Kf2 {[%clk 0:00:02.2]} 46... h4 {[%clk 0:00:09.8]}
47. Kg1 {[%clk 0:00:02.2]} 47... h3 {[%clk 0:00:07.3]} 48. Bf2 {[%clk
0:00:02.7]} 48... h2+ {[%clk 0:00:07.3]} 49. Kh1 {[%clk 0:00:02.7]} 49... Bh3
{[%clk 0:00:07.9]} 50. Bg3 {[%clk 0:00:01.9]} 50... Bxg3 {[%clk 0:00:06.8]} 51.
Bf1 {[%clk 0:00:01]} 51... Bxf1 {[%clk 0:00:06.9]} 0-1

[Event "*** Titled Tuesday Blitz"]
[Site "Chess.com"]
[Date "2021.03.02"]
[Round "4"]
[White "Fighter008"]
[Black "tigra"]
[Result "1/2-1/2"]
[WhiteElo "2639"]
[BlackElo "2853"]
[TimeControl "180+1"]
[EndTime "10:40:29 PST"]
[Termination "Game drawn - insufficient material"]

1. e4 {[%clk 0:03:00.9]} 1... c6 {[%clk 0:03:00.3]} 2. d4 {[%clk 0:02:58.7]}
2... d5 {[%clk 0:03:01.2]} 3. e5 {[%clk 0:02:59.2]} 3... g6 {[%clk 0:02:59.6]}
4. h4 {[%clk 0:02:54.6]} 4... h5 {[%clk 0:02:59.6]} 5. Bg5 {[%clk 0:02:53.2]}
5... Bh6 {[%clk 0:02:59.3]} 6. Nc3 {[%clk 0:02:48.3]} 6... Bxg5 {[%clk
0:02:58.6]} 7. hxg5 {[%clk 0:02:49.2]} 7... Bg4 {[%clk 0:02:58.2]} 8. Be2 {[%clk
0:02:47.4]} 8... Bxe2 {[%clk 0:02:57.5]} 9. Ngxe2 {[%clk 0:02:48.3]} 9... e6
{[%clk 0:02:58.1]} 10. Qd2 {[%clk 0:02:48.2]} 10... Ne7 {[%clk 0:02:57.9]} 11.
g4 {[%clk 0:02:47.3]} 11... Nd7 {[%clk 0:02:57.1]} 12. gxh5 {[%clk 0:02:46]}
12... gxh5 {[%clk 0:02:56.7]} 13. Nf4 {[%clk 0:02:40.5]} 13... h4 {[%clk
0:02:52.3]} 14. O-O-O {[%clk 0:02:32.7]} 14... Nf8 {[%clk 0:02:49]} 15. Qe2
{[%clk 0:02:22.3]} 15... Neg6 {[%clk 0:02:45.8]} 16. Qg4 {[%clk 0:02:09.8]}
16... Nxf4 {[%clk 0:02:45.6]} 17. Qxf4 {[%clk 0:02:10]} 17... Ng6 {[%clk
0:02:46.3]} 18. Qg4 {[%clk 0:01:58.5]} 18... Qe7 {[%clk 0:02:36.6]} 19. f4
{[%clk 0:01:57.4]} 19... O-O-O {[%clk 0:02:33.2]} 20. Rdf1 {[%clk 0:01:55.3]}
20... Kb8 {[%clk 0:02:31.8]} 21. f5 {[%clk 0:01:54.9]} 21... exf5 {[%clk
0:02:30.7]} 22. Qxf5 {[%clk 0:01:51.8]} 22... Rh7 {[%clk 0:02:26.6]} 23. Ne2
{[%clk 0:01:50.5]} 23... h3 {[%clk 0:02:20.3]} 24. Rxh3 {[%clk 0:01:42.3]} 24...
Rxh3 {[%clk 0:02:19.3]} 25. Qxh3 {[%clk 0:01:43.2]} 25... Qxg5+ {[%clk
0:02:19.8]} 26. Kb1 {[%clk 0:01:40.3]} 26... Qd2 {[%clk 0:02:19.3]} 27. Qd3
{[%clk 0:01:32.4]} 27... Qxd3 {[%clk 0:02:19]} 28. cxd3 {[%clk 0:01:33.3]} 28...
Rd7 {[%clk 0:02:19.5]} 29. Rf6 {[%clk 0:01:31.5]} 29... Nf8 {[%clk 0:02:16.8]}
30. Nf4 {[%clk 0:01:26.6]} 30... Re7 {[%clk 0:02:17.1]} 31. Kc2 {[%clk
0:01:20.9]} 31... Kc7 {[%clk 0:02:16.9]} 32. Kc3 {[%clk 0:01:20.8]} 32... a5
{[%clk 0:02:13.5]} 33. a4 {[%clk 0:01:16.8]} 33... Nh7 {[%clk 0:02:11.5]} 34.
Rh6 {[%clk 0:01:13.9]} 34... Ng5 {[%clk 0:02:11.7]} 35. Rh8 {[%clk 0:01:11.5]}
35... Ne6 {[%clk 0:02:06.7]} 36. Nxe6+ {[%clk 0:00:59.9]} 36... fxe6 {[%clk
0:02:07.6]} 37. Rh6 {[%clk 0:00:58.5]} 37... b5 {[%clk 0:02:06.2]} 38. b3 {[%clk
0:00:46.6]} 38... Kb6 {[%clk 0:02:06.2]} 39. Rg6 {[%clk 0:00:44]} 39... Re8
{[%clk 0:01:56.3]} 40. Rf6 {[%clk 0:00:43.7]} 40... b4+ {[%clk 0:01:55]} 41. Kd2
{[%clk 0:00:43.4]} 41... c5 {[%clk 0:01:55.5]} 42. Ke3 {[%clk 0:00:41.1]} 42...
Kc6 {[%clk 0:01:50.8]} 43. dxc5 {[%clk 0:00:40.8]} 43... Kxc5 {[%clk 0:01:49.4]}
44. d4+ {[%clk 0:00:41.1]} 44... Kc6 {[%clk 0:01:49.9]} 45. Rh6 {[%clk
0:00:40.2]} 45... Re7 {[%clk 0:01:48.6]} 46. Kf4 {[%clk 0:00:38.9]} 46... Kd7
{[%clk 0:01:46.1]} 47. Kg5 {[%clk 0:00:36.5]} 47... Rf7 {[%clk 0:01:41.2]} 48.
Rf6 {[%clk 0:00:35.8]} 48... Rh7 {[%clk 0:01:41.2]} 49. Rh6 {[%clk 0:00:35.1]}
49... Rg7+ {[%clk 0:01:41.3]} 50. Kf6 {[%clk 0:00:25.3]} 50... Rg4 {[%clk
0:01:40.5]} 51. Rh7+ {[%clk 0:00:25.2]} 51... Kc6 {[%clk 0:01:40.8]} 52. Kxe6
{[%clk 0:00:25.3]} 52... Rxd4 {[%clk 0:01:39.2]} 53. Ra7 {[%clk 0:00:22.9]}
53... Kb6 {[%clk 0:01:32.7]} 54. Rd7 {[%clk 0:00:22.9]} 54... Rd3 {[%clk
0:01:28.7]} 55. Rxd5 {[%clk 0:00:21.3]} 55... Rxb3 {[%clk 0:01:28.6]} 56. Kd7
{[%clk 0:00:20.5]} 56... Rc3 {[%clk 0:01:12.5]} 57. Rb5+ {[%clk 0:00:19.5]}
57... Ka6 {[%clk 0:01:13.2]} 58. e6 {[%clk 0:00:19.6]} 58... Rd3+ {[%clk
0:01:13.3]} 59. Ke8 {[%clk 0:00:18.6]} 59... b3 {[%clk 0:01:11.5]} 60. e7 {[%clk
0:00:18.9]} 60... Rd4 {[%clk 0:00:57.9]} 61. Rxb3 {[%clk 0:00:16.8]} 61... Rxa4
{[%clk 0:00:56.3]} 62. Rd3 {[%clk 0:00:16.1]} 62... Re4 {[%clk 0:00:55.4]} 63.
Kd7 {[%clk 0:00:16]} 63... Kb5 {[%clk 0:00:54.9]} 64. e8=Q {[%clk 0:00:15.8]}
64... Rxe8 {[%clk 0:00:54.3]} 65. Kxe8 {[%clk 0:00:16.6]} 65... a4 {[%clk
0:00:54.7]} 66. Kd7 {[%clk 0:00:16.9]} 66... Kc4 {[%clk 0:00:54.5]} 67. Rd1
{[%clk 0:00:15.5]} 67... Kc3 {[%clk 0:00:53.8]} 68. Kc6 {[%clk 0:00:15.7]} 68...
a3 {[%clk 0:00:53.8]} 69. Kb5 {[%clk 0:00:15.2]} 69... a2 {[%clk 0:00:54.2]} 70.
Ka4 {[%clk 0:00:12]} 70... Kb2 {[%clk 0:00:54.1]} 71. Rh1 {[%clk 0:00:11.7]}
71... a1=N {[%clk 0:00:49.1]} 72. Rxa1 {[%clk 0:00:09.5]} 72... Kxa1 {[%clk
0:00:49.3]} 1/2-1/2